{"text_format":"3","workbook":"xlsx","n_sheets":1,"sheets":["Pricing Annexure"],"not_rendered":{"images":1,"defined_names":1},"read":"whole","date_system":"1900"}

{"sheet":"Pricing Annexure","index":0,"n_rows":103,"n_cols":7,"rows_kept":103,"merged":[[1,3,1,6],[2,3,2,6],[3,3,3,6],[65,8,66,8],[98,9,99,9],[102,2,102,6]]}
[]
[null,null,"BID NUMBER","RW10395952 & RW10396801"]
[null,null,"BID DESCRIPTION","THE SUPPLY AND DELIVER HORTICULTURAL MAINTENANCE SERVICES AT RAND WATER VARIOUS SITES ON AN AS AND WHEN REQUIRED BASIS."]
[null,null,"BIDDER NAME"]
[]
[null,null," Panfontein, Zwartkopjes, Mapleton, Eikenhof, Palmiet, Rietvlei and Nature area, Zuikerbosch waste dump, Driefontein, Vereeniging ash/waste material, Rand Water Bulk Water, servitudes and reservoirs. "]
[null,null,"DELIVERABLES (DESCRIPTION)","QTY (A)","UNIT OF MEASURE","RATE (B)","Total (A x B)"]
[null,null,"Panfontein Sludge disposal site"]
[null,1,"Preliminary, compliance and other general costs ",1,"Sum",null,{"$f":"D9*F9","v":0}]
[null,2,"Lawned areas and gardens",735900,"m²",null,{"$f":"D10*F10","v":0}]
[null,3,"Veld areas and all un-landscaped areas",48600,"m²",null,0]
[null,4,"Uncut veld areas ",1620000,"m²",null,0]
[null,5,"Fence line maintenance and fire breaks",193896,"m²",null,{"$f":"D13*F13","v":0}]
[null,6,"Canal, Spillway’s and Embankments",3000,"m²",null,0]
[null,7,"Earth and Sludge dam Embankments",990000,"m²",null,0]
[null,8,"Maintenance on dirt access road",6336,"m²",null,0]
[null,9,"Verge between Panfontein Sludge Disposal Site and Vischgat Road.",96000,"m²",null,{"$f":"D17*F17","v":0}]
[null,10,"Control of alien invasive plants and application of herbicides",7800,"m²",null,0]
[null,11,"Maintenance of  paved, tar road  and application of herbicides and pesticides on all hard surfaces",74367,"m²",null,0]
[null,12,"Wood chipping and mulch ",1,"Sum",null,0]
[null,13,"Fence line inspection and repairs ",32298,"m",null,0]
[null,14,"Fire breaks creation and maitenance",226086,"m²",null,0]
[null,15,"Levelling heaps/pile of soil along the canals",5400,"m³",null,0]
[null,16,"Clearing up waste on  site and dumping waste to a registered land fill. ",1,"Sum",null,0]
[null,17,"Ad hoc environmental and horticultural activities as and when needed",null,"Provisional Sum",null,0]
[null,null,"Total for Panfontein Sludge Disposal site"]
[null,null,"Vereeniging Analytical services, Process Technology and Water Wise"]
[null,18,"Preliminary, compliance and other general costs",1,"Sum",null,0]
[null,19,"Mowing of lawns and garden maintenance",39237,"m²",null,0]
[null,20,"Verge - Grass cutting outside perimeter and fence clearance",11211,"m²",null,0]
[null,21,"Indoor and outdoor pot plants maintenance",264,"ea",null,0]
[null,22,"Repairs and maintenance  of irrigation system.",8195,"m",null,0]
[null,23,"Chemical application of herbicides and pesticides ",5700,"m²",null,0]
[null,24,"Supply, delivery and application of pine bark 50mm-60mm (large). 25kg bag",300,"ea",null,0]
[null,25,"Clearing up waste on  site and dumping waste to a registered land fill.",1,"Sum",null,{"$f":"D35*F35","v":0}]
[null,26,"Ad hoc environmental and horticultural activities as and when needed",null,"Provisional Sum",null,0]
[null,null,"Total for Vereeniging Analytical services, Process Technology and Water Wise "]
[null,null,"ZKB Waste dump Pumping Station"]
[null,27,"Preliminary, compliance and other general costs",1,"Sum",null,0]
[null,28,"Grass cutting ",1685583,"m²",null,0]
[null,29,"Creation and maintain fire breaks",22050,"m²",null,0]
[null,30,"Silt traps maintenance ",3417,"m",null,0]
[null,31,"Control of alien invasive plants and application of herbicides",876,"m²",null,0]
[null,32,"Cleaning up of site and waste disposal at a registered land fill",1,"Sum",null,0]
[null,33,"Ad hoc environmental and horticultural activities as and when needed",null,"Provisional Sum",null,0]
[null,null,"Total for ZKB Waste dump Pumping Station"]
[null,null,"VG By-Product site "]
[null,34,"Preliminary, compliance and other general costs",1,"Sum",null,0]
[null,35,"Grass cutting",180900,"m²",null,0]
[null,36,"Control of alien invasive plants and application of herbicides",3900,"m²",null,0]
[null,37,"Fence repairs and maintenance",1200,"m",null,0]
[null,38,"Creation of fire break by disking ",26700,"m²",null,0]
[null,39,"Clearing up waste on  site and dumping waste to a registered land fill.",1,"Sum",null,0]
[null,40,"Ad hoc environmental and horticultural activities as and when needed",null,"Provisional Sum",null,0]
[null,null,"Total for VG By-Product site "]
[null,null,"Driefontein site maintenance"]
[null,41,"Preliminary, compliance and General  cost",1,"Sum",null,0]
[null,42,"Grass cutting April/May",168000,"m²",null,0]
[null,43,"Vegetation control along the fence and chemical application",2940,"m²",null,0]
[null,44,"Fence repairs and maintenance",660,"m",null,0]
[null,45,"Fire break along the fence line, April/May",2940,"m²",null,0]
[null,46,"Clearing up waste on  site and dumping waste to a registered land fill.",1,"Sum",null,0]
[null,null,"Ad hoc activities as and when required",null,"Provisional Sum",null,{"$f":"D63*F63","v":0}]
[null,47,"Total for Driefontein site maintenance"]
[null,null,"Bulk Water site and Servitude maintenance"]
[null,49,"Grass cutting - servitude and reservoir ",14944911,"m²",null,0]
[null,50,"Fire break creation and maintenance",14944911,"m²",null,0]
[null,51,"Application of herbicides",14944911,"m²",null,0]
[null,52,"Clearing up waste on site and  disposal to a registered land fill site",1,"Sum",null,0]
[null,53,"Ad hoc environmental and horticultural activities as and when needed",null,"Provisional Sum",null,0]
[null,null,"Total for Bulk Water site and Servitude maintenance"]
[null,null,"Rietvlei site, Forest Hill Flats and nature reserve grass cutting and fence clearance."]
[null,55,"Fence clearance and Rietvlei nature reserve grass cutting",142968,"m²",null,0]
[null,56,"Rietvlei Rubble removal",60,"m³",null,0]
[null,57,"Control of alien invasive plants and application of herbicides",1662939,"m²",null,0]
[null,58,"Upgrade of subsided indoor garden ",900,"m²",null,0]
[null,59,"\nVegetation removal on building and roof tops\n",1,"Sum",null,0]
[null,60,"Wood chipping and mulch",30,"m³",null,0]
[null,61,"Ad hock activities needs as and when required.",null,"Provisional Sum",null,0]
[null,null,"Total for Rietvlei site, Forest Hill Flats and nature reserve grass cutting and fence clearance."]
[null,null," Vereenging Pumping Station"]
[{"$f":"A82:C82","v":0},63,"Lawn dressing - sports field",10000,"m²",null,0]
[null,64,"Removal of lawn and install hard landscape surface",36000,"m²",null,0]
[null,65,"Ad hoc environmental and horticultural activities as and when needed",null,"Provisional Sum",null,{"$f":"D84*F84","v":0}]
[null,null,"Total for Vereenging Pumping Station"]
[null,null," Zwartkopjes and Satelite stations"]
[null,67,"Emhlangeni",1488000,"m²",null,0]
[null,68,"Eikenhof",644847,"m²",null,0]
[null,69,"Palmiet",535479,"m²",null,0]
[null,70,"Mapleton",229679,"m²",null,0]
[null,71,"Rand Water farm",93750,"m²",null,0]
[null,72,"Zwartkopjies site",2539446,"m²",null,{"$f":"D92*F92","v":0}]
[null,73,"Ad hoc environmental and horticultural activities as and when needed",null,"Provisional Sum",null,{"$f":"D93*F93","v":0}]
[null,null,"Total for Zwartkopjes and Satelite stations"]
[null,null,"SUB-TOTAL",{"$nulls":3},{"$f":"SUM(G9:G93)","v":0}]
[]
[null,null,"Total for all  Deliverables",{"$f":"G95","v":0}]
[null,null,"Disbursements at 12% of Total for all Deliverables",{"$f":"D97*0.12","v":0}]
[null,null,"SUBTOTAL before VAT",{"$f":"SUM(D97:D98)","v":0}]
[null,null,"VAT (if applicable)",{"$f":"D99*0.15","v":0}]
[null,null,"FORM OF OFFER \n(for commercial evaluation purposes)",{"$f":"SUM(D99:D100)","v":0}]
[]
[null,null,"NOTE : Goods/services will be called-off as and when required by Rand Water after the award of the contract. Rand Water reserves the right not to acquire all the estimated quantities at once. Suppliers are therefore advised not to procure goods/services upfront and only procure upon the instruction of Rand Water."]